fUSD/lending_fUSD_20260519
["ID","MTS","AMOUNT","RATE_DAILY","PERIOD"]
[422618235,1779161444000,-150.0,0.0003277,7]
[422618234,1779161444000,-150.0,0.0003277,7]
[422618231,1779161444000,-150.0,0.0003277,7]
[422618233,1779161444000,-150.0,0.0003277,7]
[422618243,1779161444000,-1002.78,0.00032877,2]
[422618261,1779161444000,-417.09344142,0.00032877,2]
[422618244,1779161444000,-350.25,0.00032877,2]
[422618245,1779161444000,-151.0,0.00032877,7]
[422618247,1779161444000,-1282.501218,0.00032877,7]
[422618249,1779161444000,-1282.501218,0.00032877,7]
[422618246,1779161444000,-151.0,0.00032877,7]
[422618252,1779161444000,-498.22,0.00032877,2]
[422618251,1779161444000,-151.0,0.00032877,7]
[422618253,1779161444000,-1000.0,0.00032877,120]
[422618257,1779161444000,-500.0,0.00032877,2]
[422618254,1779161444000,-167.1732265,0.00032877,2]
[422618258,1779161444000,-500.0,0.00032877,2]
[422618260,1779161444000,-500.0,0.00032877,2]
[422618232,1779161444000,-150.0,0.0003277,7]
[422618250,1779161444000,-1282.501218,0.00032877,7]
[422618239,1779161444000,-150.0,0.00032832,7]
[422618217,1779161444000,-1000.0,0.000325,14]
[422618230,1779161444000,-150.0,0.0003277,7]
[422618255,1779161444000,-500.0,0.00032877,2]
[422618204,1779161444000,-288.0,0.00032204,30]
[422618203,1779161444000,-221.758982,0.000322,7]
[422618207,1779161444000,-159.0,0.00032204,30]
[422618216,1779161444000,-1000.0,0.000325,7]
[422618206,1779161444000,-151.0,0.00032204,30]
[422618205,1779161444000,-156.0,0.00032204,30]
[422618208,1779161444000,-536.0,0.00032204,30]
[422618211,1779161444000,-4309.0,0.0003224,2]
[422618209,1779161444000,-1000.0,0.00032209,5]
[422618215,1779161444000,-1000.0,0.000325,2]
[422618212,1779161444000,-5962.91,0.000323,14]
[422618229,1779161444000,-150.0,0.0003277,7]
[422618214,1779161444000,-1000.0,0.000325,2]
[422618213,1779161444000,-431.58853386,0.00032412,2]
[422618221,1779161444000,-1224.868,0.00032578,2]
[422618220,1779161444000,-1212.124,0.00032578,2]
[422618219,1779161444000,-150.0,0.00032562,2]
[422618218,1779161444000,-1000.0,0.000325,14]
[422618226,1779161444000,-1000.0,0.0003272,3]
[422618222,1779161444000,-188.73,0.000326,7]
[422618224,1779161444000,-795.97775736,0.00032684,7]
[422618223,1779161444000,-259.53,0.000326,7]
[422618227,1779161444000,-150.0,0.0003277,7]
[422618225,1779161444000,-1357.46343006,0.00032684,7]
[422618228,1779161444000,-150.0,0.0003277,7]
[422618210,1779161444000,-721.4,0.0003221,5]
[422618259,1779161444000,-500.0,0.00032877,2]
[422618256,1779161444000,-500.0,0.00032877,2]
[422618264,1779161444000,-150.0,0.00032955,7]
[422618288,1779161444000,-431279.5343795,0.00033148,2]
[422618297,1779161444000,-311.034375,0.000332,16]
[422618295,1779161444000,-259.0,0.00033196,2]
[422618292,1779161444000,-154.0,0.00033165,30]
[422618296,1779161444000,-1000.0,0.00033199,16]
[422618301,1779161444000,-288.0,0.00033204,30]
[422618311,1779161444000,-150.0,0.00033302,2]
[422618312,1779161444000,-150.0,0.00033325,7]
[422618307,1779161444000,-150.0,0.00033255,7]
[422618305,1779161444000,-536.0,0.00033204,30]
[422618310,1779161444000,-1268.88,0.000333,7]
[422618300,1779161444000,-150.0,0.00033202,7]
[422618308,1779161444000,-150.0,0.00033264,7]
[422618302,1779161444000,-156.0,0.00033204,30]
[422618303,1779161444000,-151.0,0.00033204,30]
[422618309,1779161444000,-150.0,0.0003329,7]
[422618304,1779161444000,-159.0,0.00033204,30]
[422618314,1779161444000,-150.0,0.00033387,7]
[422618315,1779161444000,-5962.91,0.000334,14]
[422618313,1779161444000,-150.0,0.00033377,7]
[422618316,1779161444000,-150.0,0.00033449,7]
[422618320,1779161444000,-150.0,0.00033498,7]
[422618318,1779161444000,-500.0,0.00033481,8]
[422618317,1779161444000,-1000.0,0.0003348,8]
[422618321,1779161444000,-1000.0,0.00033507,18]
[422618319,1779161444000,-150.0,0.00033498,7]
[422618262,1779161444000,-150.0,0.00032893,7]
[422618293,1779161444000,-150.0,0.00033174,7]
[422618298,1779161444000,-314.308421,0.000332,16]
[422618306,1779161444000,-150.0,0.00033225,7]
[422618299,1779161444000,-311.034375,0.000332,16]
[422618289,1779161444000,-151.0,0.00033148,7]
[422618265,1779161444000,-167.42101506,0.00033,120]
[422618269,1779161444000,-1111.27706513,0.00033,30]
[422618273,1779161444000,-1111.27706513,0.00033,30]
[422618263,1779161444000,-150.0,0.00032922,7]
[422618267,1779161444000,-300.1150362,0.00033,2]
[422618268,1779161444000,-1111.27706513,0.00033,30]
[422618274,1779161444000,-1111.27706513,0.00033,60]
[422618271,1779161444000,-1111.27706513,0.00033,30]
[422618270,1779161444000,-1111.27706513,0.00033,30]
[422618272,1779161444000,-1111.27706513,0.00033,30]
[422618276,1779161444000,-1111.27706513,0.00033,60]
[422618286,1779161444000,-96231.4715747,0.00033148,2]
[422618275,1779161444000,-1111.27706513,0.00033,60]
[422618266,1779161444000,-192.30854507,0.00033,120]
[422618287,1779161444000,-18658.8609072,0.00033148,2]
[422618278,1779161444000,-150.0,0.00033013,7]
[422618283,1779161444000,-500.0,0.00033147,2]
[422618282,1779161444000,-150.0,0.0003314,7]
[422618284,1779161444000,-497.4167401,0.00033147,2]
[422618280,1779161444000,-150.0,0.00033073,7]
[422618279,1779161444000,-150.0,0.00033017,7]
[422618285,1779161444000,-1976.8935119,0.00033148,2]
[422618281,1779161444000,-150.0,0.00033078,7]
[422618277,1779161444000,-1111.27706513,0.00033,60]
[422618291,1779161444000,-162.0,0.00033165,30]
[422618294,1779161444000,-253.0,0.00033196,2]
[422618290,1779161444000,-157.0,0.0003315,30]
[422618356,1779161445000,-150.0,0.00034066,7]
[422618358,1779161445000,-150.0,0.00034135,7]
[422618353,1779161445000,-298.36,0.00034031,2]
[422618364,1779161445000,-500.0,0.00034185,9]
[422618359,1779161445000,-157.0,0.0003415,30]
[422618355,1779161445000,-163.0,0.00034044,11]
[422618351,1779161445000,-150.0,0.00034004,7]
[422618362,1779161445000,-721.4,0.00034182,7]
[422618354,1779161445000,-163.0,0.00034044,11]
[422618361,1779161445000,-154.0,0.00034165,30]
[422618363,1779161445000,-1000.0,0.00034184,9]
[422618367,1779161445000,-288.0,0.00034204,30]
[422618357,1779161445000,-150.0,0.00034128,7]
[422618365,1779161445000,-150.0,0.00034189,7]
[422618374,1779161445000,-150.0,0.00034226,7]
[422618366,1779161445000,-150.0,0.0003419,2]
[422618368,1779161445000,-156.0,0.00034204,30]
[422618370,1779161445000,-159.0,0.00034204,30]
[422618373,1779161445000,-150.0,0.00034226,7]
[422618369,1779161445000,-151.0,0.00034204,30]
[422618372,1779161445000,-5811.57,0.00034219,14]
[422618371,1779161445000,-536.0,0.00034204,30]
[422618376,1779161445000,-1000.0,0.00034247,120]
[422618377,1779161445000,-150.0,0.00034251,7]
[422618384,1779161445000,-1587.0,0.00034315,11]
[422618380,1779161445000,-274.4488422,0.00034254,30]
[422618379,1779161445000,-411.6732633,0.00034254,30]
[422618375,1779161445000,-2314.0,0.00034234,11]
[422618352,1779161445000,-2024.21,0.00034031,2]
[422618324,1779161445000,-150.0,0.00033572,7]
[422618348,1779161445000,-2314.0,0.00033995,11]
[422618386,1779161445000,-150.0,0.00034374,7]
[422618323,1779161445000,-150.0,0.00033528,7]
[422618322,1779161445000,-150.0,0.0003351,7]
[422618326,1779161445000,-2314.0,0.00033578,11]
[422618332,1779161445000,-911.29233687,0.00033705,2]
[422618333,1779161445000,-2314.0,0.00033724,11]
[422618334,1779161445000,-150.0,0.00033741,7]
[422618335,1779161445000,-150.0,0.00033757,7]
[422618336,1779161445000,-2314.0,0.00033785,11]
[422618337,1779161445000,-1587.0,0.00033801,11]
[422618325,1779161445000,-320.0,0.00033578,11]
[422618327,1779161445000,-150.0,0.00033579,7]
[422618329,1779161445000,-150.0,0.00033634,7]
[422618360,1779161445000,-162.0,0.00034165,30]
[422618328,1779161445000,-1628.95611607,0.00033591,7]
[422618331,1779161445000,-150.0,0.00033696,7]
[422618338,1779161445000,-150.0,0.0003381,7]
[422618340,1779161445000,-150.0,0.00033832,7]
[422618341,1779161445000,-152.0,0.00033865,4]
[422618342,1779161445000,-150.0,0.00033881,7]
[422618345,1779161445000,-150.0,0.00033984,7]
[422618343,1779161445000,-150.0,0.00033942,7]
[422618339,1779161445000,-150.0,0.00033819,7]
[422618349,1779161445000,-1587.0,0.00033995,11]
[422618346,1779161445000,-150.0,0.00033984,7]
[422618350,1779161445000,-750.0,0.00034,2]
[422618344,1779161445000,-150.0,0.00033984,7]
[422618347,1779161445000,-150.0,0.00033984,7]
[422618330,1779161445000,-150.0,0.0003368,7]
[422618382,1779161445000,-150.0,0.00034287,7]
[422618444,1779161445000,-150.0,0.00035197,7]
[422618378,1779161445000,-411.6732633,0.00034254,30]
[422618414,1779161445000,-150.0,0.00034868,7]
[422618413,1779161445000,-150.0,0.0003485,7]
[422618417,1779161445000,-500.0,0.0003489,10]
[422618420,1779161445000,-259.53,0.000349,30]
[422618419,1779161445000,-188.73,0.000349,30]
[422618421,1779161445000,-1587.0,0.00034928,11]
[422618418,1779161445000,-150.0,0.00034894,7]
[422618425,1779161445000,-150.0,0.00034955,7]
[422618435,1779161445000,-2314.0,0.00035114,11]
[422618436,1779161445000,-702.0,0.00035114,11]
[422618437,1779161445000,-150.0,0.00035115,7]
[422618426,1779161445000,-150.0,0.00034967,2]
[422618427,1779161445000,-400.0,0.0003497,2]
[422618423,1779161445000,-1900.44880208,0.00034951,7]
[422618424,1779161445000,-150.0,0.00034955,7]
[422618434,1779161445000,-163.0,0.00035085,11]
[422618432,1779161445000,-150.0,0.00035053,7]
[422618430,1779161445000,-348.94832775,0.00035,5]
[422618428,1779161445000,-150.0,0.00034992,7]
[422618433,1779161445000,-1063.17439301,0.00035068,2]
[422618431,1779161445000,-150.0,0.00035046,7]
[422618439,1779161445000,-157.0,0.0003515,30]
[422618438,1779161445000,-1587.0,0.00035118,11]
[422618440,1779161445000,-162.0,0.00035165,30]
[422618441,1779161445000,-164.61702342,0.00035165,30]
[422618442,1779161445000,-150.0,0.00035177,7]
[422618383,1779161445000,-150.0,0.00034313,7]
[422618443,1779161445000,-150.0,0.00035197,7]
[422618429,1779161445000,-5000.0,0.00035,2]
[422618416,1779161445000,-2314.0,0.00034874,11]
[422618445,1779161445000,-150.0,0.00035197,7]
[422618415,1779161445000,-163.0,0.00034874,11]
[422618422,1779161445000,-150.0,0.0003493,7]
[422618385,1779161445000,-150.0,0.0003433,7]
[422618387,1779161445000,-150.0,0.00034388,7]
[422618390,1779161445000,-163.0,0.00034445,11]
[422618389,1779161445000,-150.0,0.00034439,7]
[422618391,1779161445000,-163.0,0.00034445,11]
[422618392,1779161445000,-1587.0,0.00034445,11]
[422618397,1779161445000,-150.0,0.0003459,7]
[422618396,1779161445000,-150.0,0.0003456,7]
[422618398,1779161445000,-445.66982121,0.00034617,2]
[422618394,1779161445000,-150.0,0.00034498,7]
[422618399,1779161445000,-690.63,0.00034618,7]
[422618395,1779161445000,-163.0,0.00034538,11]
[422618388,1779161445000,-150.0,0.00034436,7]
[422618381,1779161445000,-274.4488422,0.00034254,30]
[422618401,1779161445000,-150.0,0.00034621,7]
[422618411,1779161445000,-1605.0,0.00034842,11]
[422618412,1779161445000,-211.6980245,0.00034849,2]
[422618410,1779161445000,-150.0,0.00034806,7]
[422618409,1779161445000,-1500.0,0.00034795,2]
[422618393,1779161445000,-150.0,0.00034469,7]
[422618402,1779161445000,-150.0,0.00034683,7]
[422618408,1779161445000,-150.0,0.00034793,7]
[422618406,1779161445000,-150.0,0.00034745,7]
[422618404,1779161445000,-150.0,0.00034712,7]
[422618405,1779161445000,-150.0,0.00034742,7]
[422618403,1779161445000,-5962.91,0.000347,14]
[422618400,1779161445000,-591.97,0.00034618,7]
[422618407,1779161445000,-690.63,0.00034792,7]
[422618488,1779161446000,-155.23,0.00035616,120]
[422618485,1779161446000,-1000.0,0.00035616,10]
[422618484,1779161446000,-1000.0,0.00035616,120]
[422618482,1779161446000,-151.0,0.00035616,7]
[422618480,1779161446000,-151.0,0.00035616,7]
[422618483,1779161446000,-151.0,0.00035616,7]
[422618481,1779161446000,-152.767854,0.00035616,7]
[422618479,1779161446000,-151.0,0.00035616,7]
[422618478,1779161446000,-151.0,0.00035616,7]
[422618476,1779161446000,-151.0,0.00035616,7]
[422618486,1779161446000,-1000.0,0.00035616,10]
[422618490,1779161446000,-221.911184,0.00035616,7]
[422618494,1779161446000,-150.0,0.00035652,7]
[422618499,1779161446000,-2314.0,0.00035731,11]
[422618491,1779161446000,-221.911184,0.00035616,7]
[422618492,1779161446000,-221.911184,0.00035616,7]
[422618495,1779161446000,-150.0,0.0003567,7]
[422618493,1779161446000,-498.22,0.00035616,2]
[422618496,1779161446000,-150.0,0.00035683,7]
[422618497,1779161446000,-150.0,0.00035683,7]
[422618498,1779161446000,-1268.88,0.000357,7]
[422618500,1779161446000,-1587.0,0.00035731,11]
[422618511,1779161446000,-428.36,0.000358,120]
[422618502,1779161446000,-152.577983,0.00035731,7]
[422618487,1779161446000,-962.0,0.00035616,10]
[422618501,1779161446000,-153.766364,0.00035731,7]
[422618489,1779161446000,-221.911184,0.00035616,7]
[422618477,1779161446000,-151.0,0.00035616,7]
[422618460,1779161446000,-150.0,0.00035315,120]
[422618471,1779161446000,-150.0,0.00035547,7]
[422618503,1779161446000,-150.0,0.00035732,7]
[422618449,1779161446000,-314.308421,0.000352,26]
[422618450,1779161446000,-311.034375,0.000352,26]
[422618448,1779161446000,-311.034375,0.000352,26]
[422618447,1779161446000,-1000.0,0.00035199,26]
[422618446,1779161446000,-150.0,0.00035197,7]
[422618452,1779161446000,-288.0,0.00035204,30]
[422618451,1779161446000,-1500.0,0.000352,7]
[422618454,1779161446000,-151.0,0.00035204,30]
[422618455,1779161446000,-159.0,0.00035204,30]
[422618462,1779161446000,-150.0,0.00035362,7]
[422618453,1779161446000,-156.0,0.00035204,30]
[422618456,1779161446000,-536.0,0.00035204,30]
[422618457,1779161446000,-150.0,0.00035238,7]
[422618459,1779161446000,-150.0,0.000353,7]
[422618458,1779161446000,-400.0,0.0003527,2]
[422618464,1779161446000,-150.0,0.00035371,7]
[422618463,1779161446000,-5304.99,0.00035363,2]
[422618475,1779161446000,-151.0,0.00035616,7]
[422618474,1779161446000,-150.0,0.00035609,7]
[422618466,1779161446000,-2314.0,0.00035434,11]
[422618468,1779161446000,-150.0,0.00035485,7]
[422618467,1779161446000,-150.0,0.0003544,7]
[422618473,1779161446000,-150.0,0.00035602,7]
[422618465,1779161446000,-150.0,0.00035424,7]
[422618470,1779161446000,-150.0,0.00035501,7]
[422618469,1779161446000,-1000.0,0.00035487,4]
[422618472,1779161446000,-500.0,0.00035595,11]
[422618504,1779161446000,-2314.0,0.00035754,11]
[422618461,1779161446000,-150.0,0.00035349,7]
[422618507,1779161446000,-500.0,0.00035787,2]
[422618539,1779161446000,-150.0,0.00036108,7]
[422618548,1779161446000,-150.0,0.00036164,7]
[422618547,1779161446000,-721.4,0.00036153,30]
[422618541,1779161446000,-163.86166734,0.0003611,30]
[422618540,1779161446000,-163.86166735,0.0003611,30]
[422618544,1779161446000,-500.0,0.0003613,2]
[422618542,1779161446000,-500.0,0.0003613,2]
[422618546,1779161446000,-159.40676161,0.0003615,30]
[422618545,1779161446000,-898.8,0.0003613,2]
[422618543,1779161446000,-500.0,0.0003613,2]
[422618560,1779161446000,-350.0,0.00036256,8]
[422618550,1779161446000,-150.0,0.00036168,7]
[422618552,1779161446000,-2314.0,0.00036185,11]
[422618551,1779161446000,-2314.0,0.00036185,11]
[422618566,1779161446000,-300.0,0.00036314,2]
[422618549,1779161446000,-162.0,0.00036165,30]
[422618561,1779161446000,-150.0,0.00036259,7]
[422618562,1779161446000,-238.938,0.00036272,2]
[422618555,1779161446000,-151.0,0.00036204,30]
[422618556,1779161446000,-162.01024614,0.00036204,30]
[422618553,1779161446000,-288.0,0.00036204,30]
[422618554,1779161446000,-156.0,0.00036204,30]
[422618557,1779161446000,-536.0,0.00036204,30]
[422618559,1779161446000,-150.0,0.00036226,7]
[422618563,1779161446000,-150.0,0.00036288,7]
[422618564,1779161446000,-500.0,0.000363,12]
[422618565,1779161446000,-25000.0,0.00036314,10]
[422618538,1779161446000,-150.0,0.00036102,7]
[422618537,1779161446000,-2314.0,0.00036074,11]
[422618505,1779161446000,-192.54772773,0.00035781,120]
[422618534,1779161446000,-5000.0,0.00036013,2]
[422618506,1779161446000,-500.0,0.00035787,2]
[422618510,1779161446000,-182.41,0.000358,120]
[422618509,1779161446000,-150.0,0.00035794,7]
[422618508,1779161446000,-599.19,0.00035787,2]
[422618512,1779161446000,-150.0,0.00035804,7]
[422618516,1779161446000,-2571.78,0.00035865,2]
[422618523,1779161446000,-169.25,0.00035947,3]
[422618536,1779161446000,-1587.0,0.00036066,11]
[422618514,1779161446000,-150.0,0.00035856,7]
[422618518,1779161446000,-150.0,0.00035891,7]
[422618517,1779161446000,-405.0,0.0003589,30]
[422618515,1779161446000,-3996.96,0.00035865,2]
[422618519,1779161446000,-150.0,0.00035899,2]
[422618513,1779161446000,-1000.0,0.00035814,29]
[422618521,1779161446000,-150.0,0.00035917,7]
[422618522,1779161446000,-150.0,0.00035925,7]
[422618533,1779161446000,-5000.0,0.00036013,2]
[422618526,1779161446000,-150.0,0.00035979,7]
[422618527,1779161446000,-800.0,0.00036,2]
[422618528,1779161446000,-405.0,0.00036,30]
[422618530,1779161446000,-5059.79459802,0.00036013,2]
[422618531,1779161446000,-5000.0,0.00036013,2]
[422618532,1779161446000,-5000.0,0.00036013,2]
[422618524,1779161446000,-169.25,0.00035947,3]
[422618535,1779161446000,-150.0,0.00036041,7]
[422618525,1779161446000,-150.0,0.00035956,7]
[422618520,1779161446000,-5962.91,0.000359,14]
[422618529,1779161446000,-150.0,0.00036006,7]
[422618602,1779161447000,-500.0,0.00036319,120]
[422618604,1779161447000,-25000.0,0.00036323,10]
[422618607,1779161447000,-151.0,0.00036332,7]
[422618605,1779161447000,-25000.0,0.00036332,10]
[422618606,1779161447000,-201.101492,0.00036332,7]
[422618609,1779161447000,-201.101492,0.00036332,7]
[422618603,1779161447000,-787.1929315,0.00036319,120]
[422618608,1779161447000,-201.101492,0.00036332,7]
[422618600,1779161447000,-844.1215167,0.00036319,120]
[422618610,1779161447000,-201.101492,0.00036332,7]
[422618599,1779161447000,-500.0,0.00036319,120]
[422618601,1779161447000,-500.0,0.00036319,120]
[422618624,1779161447000,-17960.44512725,0.00036402,10]
[422618623,1779161447000,-25000.0,0.00036402,10]
[422618622,1779161447000,-25000.0,0.00036393,10]
[422618611,1779161447000,-151.0,0.00036332,7]
[422618617,1779161447000,-25000.0,0.00036358,10]
[422618620,1779161447000,-25000.0,0.00036384,10]
[422618615,1779161447000,-25000.0,0.00036349,10]
[422618613,1779161447000,-25000.0,0.0003634,10]
[422618614,1779161447000,-152.0,0.00036345,5]
[422618618,1779161447000,-25000.0,0.00036367,10]
[422618616,1779161447000,-150.0,0.00036349,7]
[422618619,1779161447000,-25000.0,0.00036376,10]
[422618621,1779161447000,-163.0,0.00036386,11]
[422618592,1779161447000,-300.0,0.00036314,2]
[422618612,1779161447000,-151.0,0.00036332,7]
[422618591,1779161447000,-455.97730837,0.00036314,2]
[422618579,1779161447000,-957.65775589,0.00036314,2]
[422618588,1779161447000,-464.23800129,0.00036314,2]
[422618627,1779161447000,-150.0,0.00036411,7]
[422618568,1779161447000,-300.0,0.00036314,2]
[422618571,1779161447000,-300.99356046,0.00036314,2]
[422618570,1779161447000,-452.28042625,0.00036314,2]
[422618569,1779161447000,-577.72111473,0.00036314,2]
[422618567,1779161447000,-464.23800129,0.00036314,2]
[422618573,1779161447000,-1128.57530382,0.00036314,2]
[422618575,1779161447000,-604.97934075,0.00036314,2]
[422618576,1779161447000,-532.60806415,0.00036314,2]
[422618577,1779161447000,-300.0,0.00036314,2]
[422618574,1779161447000,-300.0,0.00036314,2]
[422618578,1779161447000,-300.0,0.00036314,2]
[422618583,1779161447000,-377.62387212,0.00036314,2]
[422618582,1779161447000,-527.33339049,0.00036314,2]
[422618580,1779161447000,-301.97541223,0.00036314,2]
[422618581,1779161447000,-1914.02107409,0.00036314,2]
[422618584,1779161447000,-309.85234605,0.00036314,2]
[422618585,1779161447000,-1584.79309311,0.00036314,2]
[422618587,1779161447000,-300.0,0.00036314,2]
[422618595,1779161447000,-432.1324112,0.00036319,120]
[422618593,1779161447000,-387.05101118,0.00036314,2]
[422618589,1779161447000,-301.3862516,0.00036314,2]
[422618594,1779161447000,-1128.57530382,0.00036314,2]
[422618586,1779161447000,-546.55378341,0.00036314,2]
[422618597,1779161447000,-500.0,0.00036319,120]
[422618596,1779161447000,-500.0,0.00036319,120]
[422618598,1779161447000,-500.0,0.00036319,120]
[422618590,1779161447000,-849.49152437,0.00036314,2]
[422618628,1779161447000,-254.67783396,0.00036411,7]
[422618572,1779161447000,-484.49907688,0.00036314,2]
[422618629,1779161447000,-157.50595746,0.00036411,7]
[422618661,1779161447000,-2314.0,0.00036757,11]
[422618656,1779161447000,-45787.83,0.000365,2]
[422618660,1779161447000,-1000.0,0.00036755,102]
[422618659,1779161447000,-163.86166734,0.0003674,30]
[422618676,1779161447000,-500.0,0.00037005,12]
[422618665,1779161447000,-1587.0,0.00036899,11]
[422618675,1779161447000,-1000.0,0.00037004,12]
[422618664,1779161447000,-163.0,0.00036825,11]
[422618666,1779161447000,-163.86166735,0.00036904,30]
[422618669,1779161447000,-2171.94148809,0.00036991,7]
[422618671,1779161447000,-259.53,0.00037,30]
[422618674,1779161447000,-163.0,0.00037003,11]
[422618667,1779161447000,-306.24923,0.0003695,34]
[422618670,1779161447000,-188.73,0.00037,30]
[422618673,1779161447000,-201.45250632,0.00037,30]
[422618672,1779161447000,-386.0728091,0.00037,30]
[422618668,1779161447000,-1000.0,0.00036986,120]
[422618679,1779161447000,-1587.0,0.00037026,11]
[422618677,1779161447000,-2314.0,0.00037011,11]
[422618681,1779161447000,-163.86166734,0.00037068,30]
[422618678,1779161447000,-1587.0,0.00037026,11]
[422618682,1779161447000,-2314.0,0.00037077,11]
[422618680,1779161447000,-1000.0,0.00037044,7]
[422618683,1779161447000,-2314.0,0.00037077,11]
[422618685,1779161447000,-1000.0,0.00037149,47]
[422618686,1779161447000,-238.938,0.00037179,2]
[422618687,1779161447000,-2314.0,0.00037182,11]
[422618651,1779161447000,-221.758982,0.00036438,7]
[422618662,1779161447000,-2314.0,0.00036762,11]
[422618684,1779161447000,-2314.0,0.00037077,11]
[422618663,1779161447000,-2558.83951614,0.00036815,7]
[422618658,1779161447000,-151.9716,0.00036715,2]
[422618632,1779161447000,-164.93102534,0.00036411,7]
[422618630,1779161447000,-151.71029879,0.00036411,7]
[422618625,1779161447000,-1000.0,0.0003641,10]
[422618631,1779161447000,-153.99235667,0.00036411,7]
[422618635,1779161447000,-599024.15499187,0.00036438,2]
[422618634,1779161447000,-163.86166734,0.00036411,30]
[422618633,1779161447000,-268.63189169,0.00036411,7]
[422618638,1779161447000,-151.0,0.00036438,7]
[422618649,1779161447000,-151.0,0.00036438,7]
[422618636,1779161447000,-154.732004,0.00036438,7]
[422618637,1779161447000,-151.0,0.00036438,7]
[422618648,1779161447000,-151.0,0.00036438,7]
[422618647,1779161447000,-151.00000004,0.00036438,7]
[422618626,1779161447000,-284.58525916,0.00036411,7]
[422618640,1779161447000,-151.0,0.00036438,7]
[422618643,1779161447000,-1282.501218,0.00036438,7]
[422618655,1779161447000,-163.86166735,0.00036493,30]
[422618653,1779161447000,-221.758982,0.00036438,7]
[422618652,1779161447000,-221.758982,0.00036438,7]
[422618654,1779161447000,-221.758982,0.00036438,7]
[422618650,1779161447000,-189.45061,0.00036438,7]
[422618657,1779161447000,-2314.0,0.00036505,11]
[422618644,1779161447000,-1282.501218,0.00036438,7]
[422618642,1779161447000,-1282.501218,0.00036438,7]
[422618641,1779161447000,-151.0,0.00036438,7]
[422618645,1779161447000,-1282.501218,0.00036438,7]
[422618646,1779161447000,-151.0,0.00036438,7]
[422618639,1779161447000,-151.0,0.00036438,7]
[422618727,1779161448000,-151.0,0.00037565,14]
[422618728,1779161448000,-398.64139905,0.00037568,2]
[422618723,1779161448000,-249.0,0.000375,120]
[422618725,1779161448000,-445.36,0.00037559,30]
[422618721,1779161448000,-151.0,0.00037489,7]
[422618722,1779161448000,-1182071.6737,0.00037489,30]
[422618720,1779161448000,-151.0,0.00037489,7]
[422618726,1779161448000,-151.0,0.00037565,14]
[422618719,1779161448000,-201.101492,0.00037489,7]
[422618724,1779161448000,-1579.3541,0.000375,26]
[422618730,1779161448000,-312647.9317676,0.00037573,7]
[422618736,1779161448000,-1282.501218,0.00037573,7]
[422618738,1779161448000,-1282.501218,0.00037573,7]
[422618729,1779161448000,-312647.9317676,0.00037573,7]
[422618731,1779161448000,-151.0,0.00037573,7]
[422618734,1779161448000,-151.0,0.00037573,7]
[422618717,1779161448000,-201.101492,0.00037489,7]
[422618733,1779161448000,-151.0,0.00037573,7]
[422618735,1779161448000,-196.746889,0.00037573,7]
[422618737,1779161448000,-1282.501218,0.00037573,7]
[422618750,1779161448000,-363.19178,0.0003762,92]
[422618740,1779161448000,-151.0,0.00037573,7]
[422618739,1779161448000,-1282.501218,0.00037573,7]